bitfinex-derivatives/quotes_BNBF0:USTF0_20250316
["timestamp","ask_amount","ask_price","bid_price","bid_amount"]
[1742156727743,0.27804132,601.51,600.43,1.07709461]
[1742156727943,0.27804132,601.5,600.43,1.07709461]
[1742156728339,0.27804132,601.51,600.43,1.07709461]
[1742156728546,0.27804132,601.5,600.43,1.07709461]
[1742156728839,0.27804132,601.49,600.43,1.07709461]
[1742156729044,0.27804132,601.51,600.43,1.07709461]
[1742156729343,0.27804132,601.5,600.43,1.07709461]
[1742156729539,0.27804132,601.51,600.43,1.07709461]
[1742156729740,0.27804132,601.5,600.43,1.07709461]
[1742156729945,0.27804132,601.51,600.43,1.07709461]
[1742156730145,0.27804132,601.5,600.43,1.07709461]
[1742156730345,0.27804132,601.51,600.43,1.07709461]
[1742156730644,0.27804132,601.5,600.43,1.07709461]
[1742156730839,0.27804132,601.51,600.43,1.07709461]
[1742156731041,0.27802644,601.5,600.43,1.07709461]
[1742156731241,0.33249102,601.52,600.43,1.07709461]
[1742156731242,0.27802644,601.51,600.43,1.07709461]
[1742156731444,0.27802644,601.49,600.43,1.07709461]
[1742156731650,0.27802644,601.48,600.43,1.07709461]
[1742156731849,0.33249102,601.52,600.43,1.07709461]
[1742156731850,0.27802644,601.51,600.43,1.07709461]
[1742156732048,0.27802644,601.5,600.43,1.07709461]
[1742156732249,0.27802644,601.51,600.43,1.07709461]
[1742156735850,0.27802644,601.51,600.43,1.07709461]
[1742156738249,0.33249102,601.52,600.43,1.07709461]
[1742156738446,0.27802492,601.51,600.43,1.07709461]
[1742156739851,0.27802492,601.51,600.43,0.744]
[1742156740355,0.27808601,601.5,600.43,0.744]
[1742156740556,0.27808601,601.49,600.43,0.744]
[1742156740757,0.27808601,601.51,600.43,0.744]
[1742156740956,0.61058808,601.5,600.43,0.744]
[1742156741157,0.27808601,601.49,600.43,0.744]
[1742156741756,0.33251313,601.48,600.43,0.744]
[1742156742057,0.27809058,601.47,600.43,0.744]
[1742156742255,0.33252419,601.46,600.43,0.744]
[1742156742457,0.27809058,601.45,600.43,0.744]
[1742156742658,0.33253524,601.44,600.43,0.744]
[1742156742958,0.27809058,601.43,600.43,0.744]
[1742156743160,0.3325463,601.42,600.43,0.744]
[1742156743354,0.27809058,601.41,600.43,0.744]
[1742156743851,0.27809813,601.4,600.43,0.744]
[1742156744053,0.61064996,601.41,600.43,0.744]
[1742156744256,0.27809813,601.4,600.43,0.744]
[1742156747460,0.33255183,601.41,600.43,0.744]
[1742156747760,0.27810383,601.4,600.43,0.744]
[1742156749462,0.33255183,601.41,600.43,0.744]
[1742156749659,0.278112,601.4,600.43,0.744]
[1742156751263,0.33255183,601.41,600.43,0.744]
[1742156751462,0.27811041,601.4,600.43,0.744]
[1742156754559,0.33256289,601.39,600.43,0.744]
[1742156754761,0.27815427,601.38,600.43,0.744]
[1742156754961,0.33257395,601.37,600.43,0.744]
[1742156755165,0.27815427,601.36,600.43,0.744]
[1742156755562,0.33258501,601.35,600.43,0.744]
[1742156755868,0.27815427,601.34,600.43,0.744]
[1742156756067,0.33259607,601.33,600.43,0.744]
[1742156756266,0.27815427,601.32,600.43,0.744]
[1742156756465,0.33260714,601.31,600.43,0.744]
[1742156756870,0.27815427,601.3,600.43,0.744]
[1742156760480,0.27815775,601.29,600.43,0.744]
[1742156760676,0.27815775,601.3,600.43,0.744]
[1742156760980,0.27815775,601.29,600.43,0.744]
[1742156761180,0.27815775,601.3,600.43,0.744]
[1742156761377,0.27815775,601.29,600.43,0.744]
[1742156761581,0.27815775,601.3,600.43,0.744]
[1742156761777,0.27815775,601.29,600.43,0.744]
[1742156762081,0.27815775,601.28,600.43,0.744]
[1742156762282,0.27815775,601.3,600.43,0.744]
[1742156762482,0.27815933,601.29,600.43,0.744]
[1742156762676,0.27815933,601.3,600.43,0.744]
[1742156762881,0.27815933,601.29,600.43,0.744]
[1742156763083,0.27815933,601.3,600.43,0.744]
[1742156763277,0.27815933,601.29,600.43,0.744]
[1742156763479,0.27815933,601.3,600.43,0.744]
[1742156763679,0.33260714,601.31,600.43,0.744]
[1742156763878,0.27814642,601.3,600.43,0.744]
[1742156765681,0.33260714,601.31,600.43,0.744]
[1742156765879,0.3326182,601.29,600.43,0.744]
[1742156766084,0.27817238,601.28,600.43,0.744]
[1742156768382,0.61079611,601.28,600.43,0.744]
[1742156768583,0.27817238,601.27,600.43,0.744]
[1742156769180,0.27815945,601.26,600.43,0.744]
[1742156769381,0.27815945,601.25,600.43,0.744]
[1742156769579,0.27815945,601.27,600.43,0.744]
[1742156769782,0.27815945,601.26,600.43,0.744]
[1742156769983,0.27815945,601.25,600.43,0.744]
[1742156770285,0.27815945,601.24,600.43,0.744]
[1742156770483,0.33262373,601.28,600.43,0.744]
[1742156770484,0.27815945,601.23,600.43,0.744]
[1742156770678,0.27815945,601.27,600.43,0.744]
[1742156770878,0.27815945,601.22,600.43,0.744]
[1742156771083,0.27815945,601.21,600.43,0.744]
[1742156771380,0.27815945,601.27,600.43,0.744]
[1742156771585,0.27815945,601.2,600.43,0.744]
[1742156771785,0.27816082,601.19,600.43,0.744]
[1742156771977,0.27816082,601.27,600.43,0.744]
[1742156772785,0.33262373,601.28,600.43,0.744]
[1742156773185,0.27815942,601.27,600.43,0.744]
[1742156774985,0.27818758,601.26,600.43,0.744]
[1742156775185,0.27818758,601.25,600.43,0.744]
[1742156775385,0.27818758,601.27,600.43,0.744]
[1742156775581,0.61082238,601.26,600.43,0.744]
[1742156775782,0.61082791,601.25,600.43,0.744]
[1742156776087,0.61083344,601.24,600.43,0.744]
[1742156776287,0.61083897,601.23,600.43,0.744]
[1742156776487,0.61084451,601.22,600.43,0.744]
[1742156776789,0.61085004,601.21,600.43,0.744]
[1742156776989,0.27818758,601.2,600.43,0.744]
[1742156778186,0.33267353,601.19,600.43,0.744]
[1742156778384,0.27818758,601.18,600.43,0.744]
[1742156778591,0.33268459,601.17,600.43,0.744]
[1742156778786,0.27818758,601.16,600.43,0.744]
[1742156779291,0.33269566,601.15,600.43,0.744]
[1742156779590,0.27818758,601.14,600.43,0.744]
[1742156779787,0.33270673,601.13,600.43,0.744]
[1742156779986,0.27818758,601.12,600.43,0.744]
[1742156780592,0.3327178,601.11,600.43,0.744]
[1742156780991,0.27818758,601.1,600.43,0.744]
[1742156781294,0.33272887,601.09,600.43,0.744]
[1742156781592,0.27818758,601.08,600.43,0.744]
[1742156781789,0.33273994,601.07,600.43,0.744]
[1742156782093,0.27818758,601.06,600.43,0.744]
[1742156782290,0.33275101,601.05,600.43,0.744]
[1742156782491,0.27818758,601.04,600.43,0.744]
[1742156782692,0.33276209,601.03,600.43,0.744]
[1742156782894,0.27818758,601.02,599.26,1.24242946]
[1742156783098,0.33277316,601.01,599.28,0.33373381]
[1742156783297,0.27818758,601.0,599.29,0.30624228]
[1742156783498,0.33278423,600.99,599.31,0.3337171]
[1742156783699,0.27818758,600.98,599.32,0.30624228]
[1742156783998,0.33279531,600.97,599.34,0.3337004]
[1742156784198,0.33279531,600.97,599.35,0.30624228]
[1742156784199,0.27818758,600.96,599.35,0.30624228]
[1742156784395,0.33280638,600.95,599.36,0.33368926]
[1742156784600,0.27818758,600.94,599.37,0.30624228]
[1742156784799,0.33281746,600.93,599.38,0.33367813]
[1742156785002,0.27818758,600.92,599.39,0.30624228]
[1742156785200,0.33282854,600.91,599.4,0.333667]
[1742156785402,0.27818758,600.9,599.41,0.30624228]
[1742156785601,0.33283962,600.89,599.42,0.33365586]
[1742156786000,0.27818758,600.88,599.43,0.30624228]
[1742156786298,0.27818758,600.88,599.44,0.33364473]
[1742156786601,0.27818758,600.88,599.45,0.30624228]
[1742156786803,0.27818758,600.88,599.46,0.3336336]
[1742156787002,0.27818758,600.88,599.47,0.30624228]
[1742156787196,0.27818758,600.88,599.48,0.33362247]
[1742156787396,0.27818758,600.88,599.49,0.30624228]
[1742156787597,0.27837503,600.87,599.5,0.63982639]
[1742156787797,0.27837503,600.88,599.51,0.30621505]
[1742156788002,0.27837503,600.87,599.52,0.33360021]
[1742156788401,0.27837503,600.86,599.53,0.30621505]
[1742156788704,0.27837503,600.85,599.54,0.33358908]
[1742156788899,0.27837503,600.88,599.55,0.30621505]
[1742156789102,0.27837503,600.88,599.56,0.33357795]
[1742156789302,0.27837503,600.88,599.57,0.30621505]
[1742156789498,0.27837503,600.88,599.58,0.33356683]
[1742156789696,0.27837503,600.88,599.59,0.30621505]
[1742156790002,0.27837503,600.88,599.6,0.3335557]
[1742156790203,0.27837503,600.88,599.61,0.30621505]
[1742156790402,0.27837503,600.88,599.62,0.33354457]
[1742156791402,0.33283962,600.89,599.62,0.33354457]
[1742156791598,0.27841726,600.88,599.62,0.33354457]
[1742156792406,0.27841726,600.88,599.63,0.30624326]
[1742156793208,0.33285069,600.87,599.62,0.33354457]
[1742156793407,0.27841977,600.86,599.63,0.30625867]
[1742156793603,0.611276,600.86,599.63,0.30625867]
[1742156793805,0.27841977,600.85,599.63,0.30625867]
[1742156796703,0.33285623,600.86,599.62,0.33354457]
[1742156797000,0.27833476,600.85,599.63,0.3061738]
[1742156797508,0.33285623,600.86,599.62,0.33354457]
[1742156797708,0.2783345,600.85,599.63,0.30617365]
[1742156798805,0.2783345,600.85,599.62,0.33354457]
[1742156798806,0.27833806,600.84,599.62,0.33354457]
[1742156799001,0.27833806,600.85,599.63,0.30617331]
[1742156799202,0.27833806,600.84,599.63,0.30617331]
[1742156799402,0.27833806,600.85,599.63,0.30617331]
[1742156799600,0.27833806,600.85,599.64,0.33353345]
[1742156800709,0.2783338,600.84,599.64,0.33353345]
[1742156801010,0.2783338,600.83,599.65,0.30616577]
[1742156801303,0.2783338,600.85,599.65,0.30616577]
[1742156801508,0.2783338,600.84,599.65,0.30616577]
[1742156801711,0.2783338,600.85,599.66,0.33352232]
[1742156801903,0.2783338,600.84,599.66,0.33352232]
[1742156802107,0.2783338,600.85,599.66,0.33352232]
[1742156802309,0.2783338,600.84,599.66,0.33352232]
[1742156802511,0.27831864,600.83,599.66,0.33352232]
[1742156802809,0.33285623,600.86,599.66,0.33352232]
[1742156802810,0.27831864,600.82,599.66,0.33352232]
[1742156803013,0.27831864,600.85,599.66,0.33352232]
[1742156803211,0.33285623,600.86,599.66,0.33352232]
[1742156803411,0.27831873,600.85,599.66,0.33352232]
[1742156804106,0.33285623,600.86,599.66,0.33352232]
[1742156804312,0.27831686,600.85,599.66,0.33352232]
[1742156805909,0.33285623,600.86,599.66,0.33352232]
[1742156806110,0.27831657,600.85,599.66,0.33352232]
[1742156806706,0.27831657,600.85,599.67,0.30617062]
[1742156806908,0.27831657,600.85,599.68,0.3335112]
[1742156807112,0.27831657,600.85,599.69,0.30617062]
[1742156807413,0.27831657,600.85,599.7,1.04150008]
[1742156807607,0.27831657,600.85,599.71,0.33349452]
[1742156808008,0.27833356,600.84,599.71,0.33349452]
[1742156808211,0.27833356,600.85,599.71,0.33349452]
[1742156808409,0.27833356,600.84,599.71,0.33349452]
[1742156808615,0.27833356,600.85,599.71,0.33349452]
[1742156808806,0.27833356,600.83,599.71,0.33349452]
[1742156809009,0.27833356,600.82,599.71,0.33349452]
[1742156809214,0.27833356,600.85,599.71,0.33349452]
[1742156809413,0.27833356,600.81,599.71,0.33349452]
[1742156809614,0.27833356,600.8,599.71,0.33349452]
[1742156809809,0.33285623,600.86,599.71,0.33349452]
[1742156810012,0.27832588,600.85,599.71,0.33349452]
[1742156810212,0.33285623,600.86,599.71,0.33349452]
[1742156811009,0.27832592,600.85,599.71,0.33349452]
[1742156816114,0.33285623,600.86,599.71,0.33349452]
[1742156816316,0.27833294,600.85,599.71,0.33349452]
[1742156818119,0.27833294,600.85,599.72,0.30616493]
[1742156818314,0.27833294,600.85,599.73,0.3334834]
[1742156823420,0.61120025,600.84,599.7,0.708]
[1742156823628,0.61120579,600.83,599.7,0.708]
[1742156823930,0.61121133,600.82,599.7,0.708]
[1742156824125,0.33288394,600.81,599.7,0.708]
[1742156824325,0.61121688,600.81,599.7,0.708]
[1742156824529,0.27833294,600.8,599.7,0.708]
[1742156824729,0.33289502,600.79,599.7,0.708]
[1742156824922,0.27833294,600.78,599.7,0.708]
[1742156825120,0.33291164,600.76,599.7,0.708]
[1742156825326,0.27833294,600.75,599.7,0.708]
[1742156825623,0.33292827,600.73,599.7,0.708]
[1742156825830,0.27833294,600.72,599.7,0.708]
[1742156826128,0.33294489,600.7,599.7,0.708]
[1742156826330,0.27852939,600.69,599.7,0.708]
[1742156826628,0.33296152,600.67,599.7,0.708]
[1742156826822,0.27852939,600.66,599.7,0.708]
[1742156827028,0.27852939,600.65,599.7,0.708]
[1742156827224,0.27852939,600.64,599.7,0.708]
[1742156827425,0.33298924,600.62,599.7,0.708]
[1742156827625,0.27852939,600.61,599.7,0.708]
[1742156827825,0.33300587,600.59,599.7,0.708]
[1742156828024,0.27852939,600.58,599.7,0.708]
[1742156828225,0.33302251,600.56,599.7,0.708]
[1742156828421,0.27852939,600.55,599.7,0.708]
[1742156828628,0.33303914,600.53,599.7,0.708]
[1742156828829,0.27852939,600.52,599.7,0.708]
[1742156829025,0.61157963,600.51,599.7,0.708]
[1742156829229,0.61158517,600.5,599.7,0.708]
[1742156829430,0.61159072,600.49,599.7,0.708]
[1742156829626,0.61159626,600.48,599.7,0.708]
[1742156829825,0.61160181,600.47,599.7,0.708]
[1742156830026,0.61160736,600.46,599.7,0.708]
[1742156830224,0.61161291,600.45,599.7,0.708]
[1742156830526,0.27852939,600.44,599.7,0.708]
[1742156831627,0.27855316,600.43,599.7,0.708]
[1742156831828,0.27855316,600.44,599.7,0.708]
[1742156832023,0.27855316,600.43,599.7,0.708]
[1742156832228,0.27855316,600.42,599.7,0.708]
[1742156832426,0.27855316,600.41,599.7,0.708]
[1742156832628,0.27855316,600.44,599.7,0.708]
[1742156832827,0.27855316,600.43,599.7,0.708]
[1742156833032,0.27855316,600.44,599.7,0.708]
[1742156833233,0.27854364,600.43,599.7,0.708]
[1742156833433,0.33308352,600.45,599.7,0.708]
[1742156833628,0.27855243,600.44,599.7,0.708]
[1742156841140,0.33308352,600.45,599.7,0.708]
[1742156841341,0.27849521,600.44,599.7,0.708]
[1742156843536,0.27849521,600.44,598.17,0.66855603]
[1742156843739,0.27849521,600.44,598.18,0.97495512]
[1742156844036,0.27849521,600.44,598.21,1.24242946]
[1742156844235,0.27849521,600.44,598.32,0.33426928]
[1742156844436,0.27849521,600.44,598.33,0.30639909]
[1742156844635,0.27849521,600.44,598.43,0.33420784]
[1742156844840,0.27849521,600.44,598.44,0.30639909]
[1742156845142,0.27849521,600.44,598.46,0.33419109]
[1742156845539,0.27849521,600.44,598.47,0.30639909]
[1742156845740,0.27849521,600.44,598.49,0.33417433]
[1742156845942,0.27849521,600.44,598.5,0.30639909]
[1742156846137,0.27849521,600.44,598.51,0.30639909]
[1742156846336,0.27849521,600.44,598.52,0.30639909]
[1742156846736,0.27849521,600.44,598.54,0.33414642]
[1742156846942,0.27849521,600.44,598.55,0.30639909]
[1742156847143,0.27849521,600.44,598.57,0.33412967]
[1742156847443,0.27849521,600.44,598.58,0.30639909]
[1742156847640,0.27849521,600.44,598.6,0.33411293]
[1742156847837,0.27849521,600.44,598.61,0.30639909]
[1742156848038,0.27849521,600.44,598.63,0.33409618]
[1742156848240,0.27849521,600.44,598.64,0.30639909]
[1742156848440,0.27849521,600.44,598.5,0.838]
[1742156848441,0.27849521,600.44,598.66,0.33407944]
[1742156848641,0.27849521,600.44,598.67,0.30639909]
[1742156848837,0.27849521,600.44,598.69,0.3340627]
[1742156849041,0.27849521,600.44,598.7,0.30639909]
[1742156849340,0.27849521,600.44,598.72,0.33404596]
[1742156849543,0.27849521,600.44,598.73,0.30639909]
[1742156851941,0.27849521,600.44,598.75,0.33402922]
[1742156852143,0.33309461,600.43,598.76,0.30639909]
[1742156852339,0.27849521,600.42,598.77,0.33401807]
[1742156852738,0.27849521,600.42,598.78,0.30639909]
[1742156853345,0.27849521,600.41,598.78,0.30639909]
[1742156853847,0.27849521,600.4,598.78,0.30639909]
[1742156854045,0.27849521,600.39,598.78,0.30639909]
[1742156854244,0.27849521,600.38,598.78,0.30639909]
[1742156854642,0.27849521,600.37,598.78,0.30639909]
[1742156854845,0.27849521,600.36,598.78,0.30639909]
[1742156855043,0.27849521,600.35,598.77,0.33401807]
[1742156855240,0.27849521,600.34,598.78,0.30669818]
[1742156855443,0.27849521,600.33,598.78,0.30669818]
[1742156855638,0.27849521,600.32,598.78,0.30669818]
[1742156855842,0.27849521,600.31,598.78,0.30669818]
[1742156856044,0.27849521,600.3,598.78,0.30669818]
[1742156856238,0.27849521,600.29,598.78,0.30669818]
[1742156856444,0.27849521,600.28,598.78,0.30669818]
[1742156856647,0.27849521,600.27,598.78,0.30669818]
[1742156856840,0.27849521,600.26,598.77,0.33401807]
[1742156857043,0.27849521,600.34,598.77,0.33401807]
[1742156857347,0.27849521,600.33,598.77,0.33401807]
[1742156857646,0.27810324,600.32,598.77,0.33401807]
[1742156857843,0.27810324,600.34,598.78,0.30664931]
[1742156858140,2.51575315,600.35,598.77,0.33401807]
[1742156858141,0.27810324,600.33,598.77,0.33401807]
[1742156858341,0.27810324,600.34,598.77,0.33401807]
[1742156858545,0.33309461,600.43,598.77,0.33401807]
[1742156858546,0.27810324,600.33,598.77,0.33401807]
[1742156858739,0.27810324,600.42,598.77,0.33401807]
[1742156859640,0.27810324,600.42,598.78,0.30664421]
[1742156859840,0.27810324,600.41,598.77,0.33401807]
[1742156860040,0.27810324,600.41,598.78,0.30664013]
[1742156860241,0.3331168,600.39,598.79,0.33400691]
[1742156860541,0.27810324,600.38,598.8,0.30664013]
[1742156861047,0.2782127,600.37,598.81,0.30662957]
[1742156861247,0.2782127,600.38,598.81,0.33399575]
[1742156861447,0.2782127,600.36,598.82,0.30662957]
[1742156861640,0.333139,600.35,598.83,0.3339846]
[1742156861842,0.2782289,600.34,598.84,0.30661397]
[1742156862046,0.2782289,600.33,598.84,0.30661397]
[1742156862241,0.2782289,600.32,598.84,0.30661397]
[1742156862444,0.2782289,600.34,598.84,0.30661397]
[1742156864147,0.3331501,600.33,598.85,0.33397344]
[1742156864445,0.2782289,600.32,598.86,0.30661397]
[1742156865443,0.2782289,600.32,598.87,0.33396229]
[1742156865444,0.3331612,600.31,598.87,0.33396229]
[1742156865645,0.2782289,600.3,598.88,0.30661397]
[1742156865947,0.3331723,600.29,598.89,0.33395114]
[1742156866246,0.2782289,600.28,598.9,0.30661397]
[1742156866446,0.2782289,600.28,598.91,0.33393999]
[1742156866641,0.61140675,600.28,598.92,0.30661397]
[1742156866840,0.2782289,600.27,598.93,0.33392883]
[1742156867041,0.2782289,600.27,598.94,0.30661397]
[1742156867341,0.2782289,600.27,598.95,0.33391768]
[1742156867643,0.2782289,600.27,598.96,0.30661397]
[1742156867847,0.2782289,600.27,598.97,0.33390653]
[1742156868049,0.2782289,600.27,598.98,0.30661397]
[1742156868443,0.2782496,600.26,598.97,0.33390653]
[1742156868648,0.2782496,600.25,598.98,0.30657651]
[1742156868847,0.2782496,600.27,598.98,0.30657651]
[1742156869142,0.2782496,600.26,598.97,0.33390653]
[1742156869443,0.2782496,600.25,598.97,0.33390653]
[1742156869648,0.2782496,600.27,598.97,0.33390653]
[1742156871847,0.2782496,600.27,598.98,0.30655929]
[1742156872446,0.2782496,600.27,598.99,0.33389539]
[1742156872749,0.2782496,600.27,599.0,0.30655929]
[1742156873953,0.2782496,600.27,599.01,0.33388424]
[1742156875854,0.2782496,600.27,599.02,0.621]
[1742156876054,0.2782496,600.27,599.03,0.33387309]
[1742156877660,0.33317785,600.28,599.03,0.33387309]
[1742156877857,0.27841004,600.27,599.03,0.33387309]
[1742156881065,0.33317785,600.28,599.03,0.33387309]
[1742156881258,0.27843659,600.27,599.03,0.33387309]
[1742156882764,0.33317785,600.28,599.03,0.33387309]
[1742156882965,0.27845166,600.27,599.03,0.33387309]
[1742156884562,0.33317785,600.28,599.03,0.33387309]
[1742156884765,0.27845328,600.27,599.03,0.33387309]
[1742156885763,0.27845328,600.27,599.04,0.30647218]
[1742156885968,0.27845328,600.27,599.05,0.33386194]
[1742156886165,0.27845328,600.27,599.06,0.30647218]
[1742156886369,0.27845328,600.27,599.07,0.3338508]
[1742156886568,0.27845328,600.27,599.08,0.30647218]
[1742156886767,0.27845328,600.27,599.09,0.33383965]
[1742156888273,0.27846076,600.26,599.09,0.33383965]
[1742156888472,0.27846076,600.27,599.09,0.33383965]
[1742156890072,0.33317785,600.28,599.09,0.33383965]
[1742156890269,0.27839501,600.27,599.09,0.33383965]
[1742156891974,0.33317785,600.28,599.09,0.33383965]
[1742156892175,0.27845179,600.27,599.09,0.33383965]
[1742156893574,0.27845998,600.26,599.09,0.33383965]
[1742156893776,0.27845998,600.27,599.09,0.33383965]
[1742156893971,0.27847299,600.26,599.09,0.33383965]
[1742156894173,0.27847299,600.27,599.1,0.30647281]
[1742156894377,0.27847299,600.26,599.1,0.30647281]
[1742156894570,0.27847299,600.27,599.11,0.33382851]
[1742156894770,0.27847299,600.26,599.12,0.30647281]
[1742156894973,0.27847299,600.27,599.13,0.33381736]
[1742156895175,0.27847299,600.26,599.14,0.30647281]
[1742156895376,0.27847299,600.25,599.15,0.33380622]
[1742156895576,0.27847299,600.9,599.16,0.30647281]
[1742156895780,0.33284516,600.88,599.17,0.33379508]
[1742156896079,0.27847299,600.87,599.18,0.30647281]
[1742156896279,0.33286177,600.85,599.19,0.33378394]
[1742156896580,0.27847299,600.84,599.2,0.30647281]
[1742156896774,0.33287839,600.82,599.21,0.3337728]
[1742156896979,0.27847299,600.81,599.21,0.3337728]
[1742156897279,0.33289502,600.79,599.21,0.3337728]
[1742156897478,0.27847299,600.78,599.21,0.3337728]
[1742156897680,0.61137909,600.77,599.21,0.3337728]
[1742156897879,0.61138463,600.76,599.21,0.3337728]
[1742156898080,0.33291718,600.75,599.21,0.3337728]
[1742156898375,0.27847299,600.74,599.21,0.3337728]
[1742156898580,0.33292827,600.73,599.21,0.3337728]
[1742156898776,0.27847299,600.72,599.21,0.3337728]
[1742156898981,0.33293935,600.71,599.21,0.3337728]
[1742156899179,0.27847299,600.7,599.21,0.3337728]
[1742156899381,0.33295044,600.69,599.21,0.3337728]
[1742156899581,0.27847299,600.68,599.21,0.3337728]
[1742156899881,0.33296152,600.67,599.22,0.30639759]
[1742156900077,0.27847299,600.66,599.23,0.33376166]
[1742156900281,0.33297261,600.65,599.24,0.30639759]
[1742156900484,0.27847299,600.64,599.25,0.33375052]
[1742156901077,0.3329837,600.63,599.25,0.33375052]
[1742156901478,0.27843753,600.62,599.25,0.33375052]
[1742156903084,0.27843753,600.62,599.26,0.30639567]
[1742156903280,0.27843753,600.62,599.27,0.33373938]
[1742156904184,0.33299478,600.61,599.27,0.33373938]
[1742156904486,0.27843753,600.6,599.27,0.33373938]
[1742156904681,0.33300587,600.59,599.27,0.33373938]
[1742156905088,0.27841926,600.58,599.27,0.33373938]
[1742156905281,0.61143068,600.58,599.27,0.33373938]
[1742156905586,0.27841926,600.57,599.27,0.33373938]
[1742156910090,0.27827646,600.56,599.27,0.33373938]
[1742156910288,0.27827646,600.57,599.27,0.33373938]
[1742156910490,0.33301142,600.58,599.27,0.33373938]
[1742156910491,0.27827646,600.56,599.27,0.33373938]
[1742156910792,0.27827646,600.55,599.27,0.33373938]
[1742156910987,0.27827646,600.57,599.27,0.33373938]
[1742156911189,0.27827646,600.56,599.27,0.33373938]
[1742156911395,0.27827646,600.55,599.27,0.33373938]
[1742156911589,0.27827646,600.57,599.27,0.33373938]
[1742156911786,0.27827646,600.56,599.27,0.33373938]
[1742156911985,0.27827646,600.57,599.27,0.33373938]
[1742156912184,0.27827646,600.56,599.27,0.33373938]
[1742156912387,0.27827646,600.57,599.27,0.33373938]
[1742156912592,0.27827336,600.56,599.27,0.33373938]
[1742156912894,0.27827336,600.55,599.27,0.33373938]
[1742156913192,0.27827336,600.54,599.27,0.33373938]
[1742156913488,0.27827336,600.53,599.27,0.33373938]
[1742156913690,0.33301142,600.58,599.27,0.33373938]
[1742156913691,0.27827336,600.57,599.28,0.30640215]
[1742156913893,0.27827336,600.56,599.29,0.33372824]
[1742156914194,0.27827336,600.55,599.29,0.33372824]
[1742156914388,0.33301142,600.58,599.29,0.33372824]
[1742156914389,0.27827336,600.54,599.29,0.33372824]
[1742156914688,0.27827336,600.53,599.29,0.33372824]
[1742156914893,0.27827336,600.57,599.29,0.33372824]
[1742156915093,0.27827336,600.56,599.29,0.33372824]
[1742156915393,0.27827336,600.55,599.29,0.33372824]
[1742156915692,0.27827336,600.54,599.3,0.30640407]
[1742156915890,0.27827336,600.57,599.31,0.3337171]
[1742156916087,0.27838949,600.56,599.31,0.3337171]
[1742156916288,0.27838949,600.57,599.31,0.3337171]
[1742156916491,0.27838949,600.56,599.31,0.3337171]
[1742156916690,0.27838949,600.57,599.32,0.30640103]
[1742156916894,0.27838949,600.56,599.32,0.30640103]
[1742156917094,0.27838949,600.57,599.32,0.30640103]
[1742156917295,0.27838949,600.56,599.32,0.30640103]
[1742156917490,0.27838949,600.57,599.32,0.30640103]
[1742156917795,0.27838949,600.56,599.32,0.30640103]
[1742156917992,0.33301142,600.58,599.31,0.3337171]
[1742156918192,0.27836479,600.57,599.32,0.30640694]
[1742156918796,0.27836479,600.56,599.32,0.30640694]
[1742156919001,0.27836479,600.57,599.32,0.30640694]
[1742156919196,0.27836479,600.55,599.33,0.33370597]
[1742156919393,0.27836479,600.54,599.34,0.30640694]
[1742156919595,0.27836479,600.57,599.35,0.33369483]
[1742156919794,0.27836479,600.56,599.35,0.33369483]
[1742156920191,0.27836479,600.55,599.36,0.30640404]
[1742156920393,0.27836479,600.54,599.36,0.30640404]
[1742156920594,0.27836479,600.53,599.36,0.30640404]
[1742156920798,0.27836479,600.52,599.36,0.30640404]
[1742156920994,0.27836479,600.51,599.36,0.30640404]
[1742156921195,0.27836479,600.5,599.35,0.33369483]
[1742156921500,0.27836479,600.49,599.35,0.33369483]
[1742156921700,0.27836479,600.57,599.35,0.33369483]
[1742156921901,0.27836479,600.56,599.35,0.33369483]
[1742156922101,0.27836479,600.55,599.35,0.33369483]
[1742156922302,2.79411794,600.54,599.35,0.33369483]
[1742156922502,3.92820639,600.53,599.35,0.33369483]
[1742156922802,0.27836479,600.52,599.35,0.33369483]
[1742156923001,0.27836479,600.51,599.35,0.33369483]
[1742156923203,0.27836479,600.5,599.35,0.33369483]
[1742156923502,0.27836479,600.49,599.35,0.33369483]
[1742156923702,0.27836479,600.48,599.35,0.33369483]
[1742156923904,0.27836479,600.47,599.35,0.33369483]
[1742156924098,0.27836479,600.46,599.35,0.33369483]
[1742156924299,0.27836479,600.45,599.35,0.33369483]
[1742156924500,0.27836479,600.48,599.35,0.33369483]
[1742156924701,0.27836479,600.47,599.35,0.33369483]
[1742156924900,0.27836479,600.48,599.35,0.33369483]
[1742156925104,0.27836479,600.46,599.35,0.33369483]
[1742156925402,0.27836479,600.45,599.35,0.33369483]
[1742156925604,0.27836479,600.48,599.35,0.33369483]
[1742156925803,0.27836479,600.47,599.35,0.33369483]
[1742156927099,3.06161021,600.47,599.35,0.33369483]
[1742156927298,0.27836479,600.46,599.35,0.33369483]